bitfinex-derivatives/quotes_BTCF0:USTF0_20230401
["timestamp","ask_amount","ask_price","bid_price","bid_amount"]
[1680315718251,10.006,28630.0,28629.0,0.18013565]
[1680315718541,10.006,28630.0,28629.0,0.28013565]
[1680315718942,10.006,28630.0,28629.0,0.18013565]
[1680315719449,10.006,28630.0,28629.0,0.28013565]
[1680315719846,10.006,28630.0,28629.0,0.96373565]
[1680315720045,10.006,28630.0,28629.0,0.61223565]
[1680315722151,9.696,28630.0,28629.0,0.96363565]
[1680315722349,9.696,28630.0,28629.0,0.96443565]
[1680315723052,9.696,28630.0,28629.0,1.26513565]
[1680315725149,9.68499805,28630.0,28629.0,1.26513565]
[1680315725545,5.73693805,28630.0,28629.0,2.17913565]
[1680315725749,5.12693805,28630.0,28629.0,1.81500229]
[1680315726146,5.08463805,28630.0,28629.0,1.8627878]
[1680315726346,5.07043805,28630.0,28629.0,1.8627878]
[1680315726549,5.06943805,28630.0,28629.0,1.8557878]
[1680315726748,5.07043805,28630.0,28629.0,1.8687878]
[1680315726946,4.88203805,28630.0,28629.0,1.82800229]
[1680315727144,4.57303805,28630.0,28629.0,1.83500229]
[1680315727343,4.26303805,28630.0,28629.0,1.83510229]
[1680315727557,3.95303805,28630.0,28629.0,1.58473565]
[1680315729243,3.95303805,28630.0,28629.0,1.58483565]
[1680315730353,3.95303805,28630.0,28629.0,0.02423565]
[1680315730555,3.95303805,28630.0,28629.0,0.02]
[1680315731053,3.95303805,28630.0,28629.0,0.02276467]
[1680315731449,3.95303805,28630.0,28629.0,0.02]
[1680315733558,3.95303805,28630.0,28629.0,0.02276499]
[1680315740255,3.95303805,28630.0,28629.0,0.19636499]
[1680315740457,3.95303805,28630.0,28629.0,0.54786499]
[1680315740660,3.95303805,28630.0,28629.0,0.6886505]
[1680315741065,3.95303805,28630.0,28629.0,0.64786499]
[1680315741765,3.95303805,28630.0,28629.0,0.68911507]
[1680315742362,3.95303805,28630.0,28629.0,0.58911507]
[1680315742668,0.3184,28650.0,28639.0,0.4]
[1680315742865,0.3184,28650.0,28647.0,0.3007]
[1680315742866,0.3178,28648.0,28647.0,0.3007]
[1680315743071,0.3007,28651.0,28647.0,0.1748]
[1680315743361,0.3007,28651.0,28649.0,0.0873]
[1680315744364,0.3007,28651.0,28649.0,0.0893]
[1680315744563,0.3007,28651.0,28650.0,0.00767209]
[1680315745366,0.3007,28651.0,28650.0,0.18247209]
[1680315745667,0.3007,28651.0,28649.0,0.002]
[1680315745668,0.18239791,28650.0,28649.0,0.002]
[1680315745961,0.18239791,28650.0,28647.0,0.0873]
[1680315746361,0.18239791,28650.0,28648.0,0.00671333]
[1680315746562,0.18239791,28650.0,28649.0,0.0873]
[1680315746766,0.18239791,28650.0,28649.0,0.0562]
[1680315746957,0.18239791,28650.0,28649.0,0.0475]
[1680315747156,0.18339791,28650.0,28648.0,0.0868]
[1680315747662,0.18339791,28650.0,28649.0,0.00871351]
[1680315747855,0.18339791,28650.0,28649.0,0.002]
[1680315748060,0.27079791,28650.0,28648.0,0.002]
[1680315748258,0.27079791,28650.0,28646.0,0.0874]
[1680315748569,0.27079791,28650.0,28638.0,0.7881]
[1680315748570,0.1,28646.0,28638.0,0.7881]
[1680315748770,0.3007,28644.0,28643.0,0.0874]
[1680315749470,0.1,28643.0,28638.0,0.7881]
[1680315749770,0.1,28643.0,28642.0,0.0874]
[1680315750770,0.1,28643.0,28642.0,0.1044]
[1680315751277,0.0544,28642.0,28636.0,0.0874]
[1680315751571,0.3007,28639.0,28634.0,0.3007]
[1680315751773,0.3007,28639.0,28636.0,0.0874]
[1680315752271,0.1,28638.0,28636.0,0.1034]
[1680315753068,0.1,28638.0,28637.0,0.00244045]
[1680315753268,0.102,28638.0,28637.0,0.00244045]
[1680315754266,0.102,28638.0,28637.0,0.00213555]
[1680315754267,0.1894,28638.0,28637.0,0.00213555]
[1680315754463,0.1,28637.0,28632.0,0.03437059]
[1680315754669,0.3007,28636.0,28633.0,0.0874]
[1680315754961,0.1,28635.0,28633.0,0.0874]
[1680315755875,0.101,28635.0,28633.0,0.0884]
[1680315757272,0.1884,28635.0,28633.0,0.001]
[1680315760777,0.1884,28635.0,28632.0,0.03437059]
[1680315760979,0.3879,28633.0,28630.0,0.06874064]
[1680315761173,0.6886,28633.0,28630.0,0.06874064]
[1680315761476,0.1,28632.0,28630.0,0.06874064]
[1680315761677,0.1,28632.0,28625.0,0.03771869]
[1680315761678,0.0874,28631.0,28625.0,0.03771869]
[1680315761881,0.3881,28626.0,28622.0,0.34187952]
[1680315762176,0.0874,28625.0,28621.0,0.04117952]
[1680315762378,0.1,28624.0,28621.0,0.04117952]
[1680315762576,0.0874,28622.0,28619.0,0.04117952]
[1680315762767,0.07639526,28622.0,28619.0,0.04117952]
[1680315762971,0.07639526,28622.0,28618.0,0.12857952]
[1680315762972,0.1,28621.0,28618.0,0.12857952]
[1680315763671,0.1,28621.0,28618.0,0.0874]
[1680315764073,0.3007,28620.0,28618.0,0.0874]
[1680315764270,0.1,28619.0,28618.0,0.0874]
[1680315764475,0.1,28619.0,28618.0,0.12857952]
[1680315764669,0.1,28619.0,28618.0,0.0874]
[1680315765371,0.1,28619.0,28617.0,0.04117952]
[1680315765372,0.1904,28619.0,28617.0,0.04117952]
[1680315766375,0.1904,28619.0,28616.0,0.04117952]
[1680315766676,0.3879,28617.0,28616.0,0.04117952]
[1680315766874,0.3879,28617.0,28614.0,0.04117952]
[1680315767267,0.1,28616.0,28614.0,0.04117952]
[1680315767573,0.1,28616.0,28613.0,0.12857952]
[1680315768078,0.103,28616.0,28613.0,0.12857952]
[1680315768781,0.103,28616.0,28615.0,0.0874]
[1680315770975,0.4911,28616.0,28609.0,0.04117952]
[1680315771176,0.0868,28612.0,28610.0,0.04117952]
[1680315771374,0.4037,28616.0,28611.0,0.0866]
[1680315771576,0.4037,28616.0,28612.0,0.0874]
[1680315772676,0.4027,28616.0,28612.0,0.0874]
[1680315773271,0.002,28616.0,28615.0,0.0874]
[1680315773468,0.002,28616.0,28615.0,0.7396]
[1680315773672,0.002,28616.0,28615.0,0.827]
[1680315774380,0.002,28616.0,28615.0,0.927]
[1680315774975,0.002,28616.0,28615.0,0.3881]
[1680315775281,0.002,28616.0,28612.0,0.3007]
[1680315775282,0.0894,28616.0,28612.0,0.3007]
[1680315775481,0.09191037,28616.0,28612.0,0.3007]
[1680315776481,0.08991037,28616.0,28612.0,0.3007]
[1680315776681,0.09191037,28616.0,28612.0,0.3007]
[1680315778881,0.3007,28615.0,28612.0,0.3007]
[1680315779082,0.1,28614.0,28612.0,0.3007]
[1680315780981,0.103,28614.0,28612.0,0.3007]
[1680315781381,0.003,28614.0,28612.0,0.3007]
[1680315781686,0.00251037,28616.0,28614.0,0.006]
[1680315781883,0.3007,28628.0,28617.0,0.3515]
[1680315782088,0.1,28627.0,28624.0,0.0873]
[1680315783085,0.0874,28625.0,28623.0,0.3007]
[1680315783686,0.0874,28625.0,28624.0,0.002]
[1680315784078,0.0884,28625.0,28623.0,0.3187]
[1680315784284,0.001,28625.0,28624.0,0.0868]
[1680315784583,0.001,28625.0,28624.0,0.7388]
[1680315784893,0.001,28625.0,28624.0,0.3187]
[1680315785788,0.001,28625.0,28624.0,1.0582]
[1680315786086,0.3007,28634.0,28624.0,1.0582]
[1680315786087,0.4092,28638.0,28624.0,1.3028]
[1680315786291,0.4092,28638.0,28636.0,0.3873]
[1680315786589,0.1,28638.0,28636.0,0.3873]
[1680315787291,0.1,28638.0,28636.0,0.3007]
[1680315787495,0.1,28638.0,28636.0,0.002]
[1680315787681,0.1,28638.0,28636.0,0.3027]
[1680315787993,0.1,28638.0,28636.0,0.3037]
[1680315789593,0.1,28638.0,28637.0,0.00280992]
[1680315789787,0.4007,28639.0,28637.0,0.00280992]
[1680315789985,0.35191316,28643.0,28637.0,0.00280992]
[1680315789986,0.1941,28642.0,28637.0,0.14250992]
[1680315790185,0.03647152,28657.0,28637.0,0.14250992]
[1680315790186,0.48309791,28650.0,28642.0,0.3515]
[1680315790390,0.48309791,28650.0,28645.0,0.3007]
[1680315790588,0.1397,28649.0,28643.0,0.1385]
[1680315790889,0.1,28648.0,28643.0,0.1385]
[1680315791393,0.1,28648.0,28644.0,0.3007]
[1680315792593,0.1,28648.0,28644.0,0.3027]
[1680315793987,0.1397,28649.0,28647.0,0.3007]
[1680315794291,0.1397,28649.0,28644.0,0.3027]
[1680315795287,0.18239791,28650.0,28647.0,0.002]
[1680315795492,0.1397,28648.0,28637.0,0.00280992]
[1680315795690,0.1385,28642.0,28641.0,0.3007]
[1680315796398,0.1385,28642.0,28637.0,0.00280992]
[1680315796590,0.1385,28642.0,28640.0,0.3007]
[1680315796786,0.1385,28642.0,28641.0,0.01]
[1680315797298,0.1397,28642.0,28641.0,0.01]
[1680315798196,0.1397,28642.0,28640.0,0.3007]
[1680315798397,0.1388,28641.0,28640.0,0.3007]
[1680315799296,0.1388,28641.0,28640.0,0.3107]
[1680315799595,0.1388,28641.0,28640.0,0.3167]
[1680315800699,0.1388,28641.0,28640.0,0.016]
[1680315801095,0.1388,28641.0,28636.0,0.3007]
[1680315801290,0.1397,28637.0,28633.0,0.9529]
[1680315801490,0.1,28636.0,28633.0,0.9529]
[1680315801891,0.1,28636.0,28633.0,0.6014]
[1680315802396,0.1,28636.0,28633.0,0.3007]
[1680315802697,0.101,28636.0,28633.0,0.3217]
[1680315803098,0.101,28636.0,28633.0,0.021]
[1680315803300,0.101,28636.0,28634.0,0.3007]
[1680315804700,0.101,28636.0,28635.0,0.00355255]
[1680315806005,0.1,28636.0,28635.0,0.00355255]
[1680315806310,0.101,28636.0,28635.0,0.02455255]
[1680315807306,0.2395,28636.0,28635.0,0.02455255]
[1680315808898,0.1395,28636.0,28635.0,0.02455255]
[1680315809097,0.001,28636.0,28635.0,0.02455255]
[1680315811003,0.001,28636.0,28635.0,0.32525255]
[1680315817210,0.1407,28636.0,28635.0,0.32525255]
[1680315817411,0.1407,28636.0,28635.0,0.02455255]
[1680315818909,0.001,28636.0,28635.0,0.16405255]
[1680315821009,0.001,28636.0,28635.0,0.37605255]
[1680315821209,0.1,28643.0,28636.0,0.4535]
[1680315821411,0.3292,28644.0,28641.0,0.3007]
[1680315821604,0.14002889,28647.0,28641.0,0.3007]
[1680315821804,0.1,28648.0,28644.0,0.3007]
[1680315822004,0.1397,28645.0,28644.0,0.3007]
[1680315822717,0.1397,28645.0,28641.0,0.3007]
[1680315823310,0.1,28644.0,28641.0,0.3007]
[1680315823515,0.1391,28642.0,28641.0,0.3007]
[1680315823708,0.1391,28642.0,28638.0,0.7894]
[1680315823709,0.1391,28642.0,28640.0,0.3007]
[1680315823912,0.1391,28642.0,28641.0,0.001]
[1680315825115,0.1507,28645.0,28641.0,0.3017]
[1680315825419,0.001,28642.0,28641.0,0.3087]
[1680315826118,0.1,28644.0,28641.0,0.3017]
[1680315826620,0.1,28644.0,28641.0,0.3007]
[1680315826818,0.001,28642.0,28641.0,0.3087]
[1680315827218,0.105,28644.0,28641.0,0.3007]
[1680315828622,0.001,28642.0,28641.0,0.3087]
[1680315829022,0.105,28644.0,28641.0,0.3007]
[1680315829823,0.001,28642.0,28641.0,0.3087]
[1680315830022,0.1,28644.0,28641.0,0.3007]
[1680315830221,0.105,28644.0,28641.0,0.3007]
[1680315830821,0.1385,28642.0,28641.0,0.3007]
[1680315831022,0.1385,28642.0,28640.0,0.34187952]
[1680315831216,0.105,28644.0,28640.0,0.34187952]
[1680315831217,0.1383,28641.0,28640.0,0.34187952]
[1680315831517,0.439,28641.0,28637.0,0.04117952]
[1680315831717,0.1391,28638.0,28637.0,0.04117952]
[1680315832511,0.1391,28638.0,28637.0,0.015]
[1680315832919,0.1401,28638.0,28637.0,0.022]
[1680315833117,0.1401,28638.0,28637.0,0.06317952]
[1680315833623,0.1401,28638.0,28637.0,0.022]
[1680315834824,0.1401,28638.0,28637.0,0.02429814]
[1680315835824,0.4408,28638.0,28637.0,0.02429814]
[1680315836826,0.1401,28638.0,28637.0,0.02429814]
[1680315837126,0.2401,28638.0,28637.0,0.02429814]
[1680315840023,0.5408,28638.0,28637.0,0.02429814]
[1680315840624,0.2401,28638.0,28637.0,0.02429814]
[1680315841725,0.1401,28638.0,28637.0,0.36617766]
[1680315842822,0.001,28638.0,28637.0,0.81619814]
[1680315843024,0.001,28638.0,28637.0,1.12958015]
[1680315843224,0.001,28638.0,28637.0,1.3477943]
[1680315845436,0.001,28638.0,28637.0,1.11683571]
[1680315845633,0.001,28638.0,28637.0,1.41753571]
[1680315847537,0.001,28638.0,28637.0,1.36513571]
[1680315848137,0.001,28638.0,28637.0,1.28271229]
[1680315849538,0.00077287,28638.0,28637.0,1.28400509]
[1680315849740,0.00055378,28638.0,28637.0,1.28400509]
[1680315849935,0.0003346,28638.0,28637.0,1.28400509]
[1680315850137,0.00011449,28638.0,28637.0,1.28400509]
[1680315850642,0.13943667,28644.0,28639.0,0.3515]
[1680315850842,0.13943667,28644.0,28641.0,0.3007]
[1680315852533,0.14443667,28644.0,28641.0,0.3007]
[1680315852738,0.14443667,28644.0,28640.0,0.3007]
[1680315852739,0.0873,28642.0,28639.0,0.04129876]
[1680315852939,0.0873,28642.0,28639.0,0.3007]
[1680315853640,0.0873,28642.0,28639.0,0.34199876]
[1680315853843,0.0873,28642.0,28639.0,0.3007]
[1680315854233,0.1,28641.0,28639.0,0.3007]
[1680315854748,0.1,28641.0,28639.0,0.3087]
[1680315855543,0.101,28641.0,28639.0,0.3157]
[1680315857145,0.101,28641.0,28640.0,0.00334834]
[1680315857340,0.1883,28641.0,28640.0,0.00334834]
[1680315858046,0.1883,28641.0,28640.0,0.01834834]
[1680315860644,0.1,28640.0,28637.0,0.04129876]
[1680315860947,0.0867,28638.0,28636.0,0.04329876]
[1680315861741,0.0867,28638.0,28637.0,0.04129876]
[1680315861938,0.0867,28638.0,28637.0,0.05029876]
[1680315863044,0.002,28640.0,28637.0,0.17094814]
[1680315863245,0.0873,28641.0,28639.0,0.04131165]
[1680315864146,0.0883,28641.0,28639.0,0.05031165]
[1680315866252,0.001,28641.0,28640.0,0.04131165]
[1680315866447,0.001,28641.0,28640.0,0.26972342]
[1680315866643,0.001,28641.0,28640.0,0.4055031]
[1680315867248,0.001,28641.0,28640.0,0.4145031]
[1680315867448,0.001,28641.0,28640.0,0.49692652]
[1680315867746,0.001,28641.0,28640.0,0.4145031]
[1680315868453,0.15517223,28646.0,28640.0,0.41812711]
[1680315868750,0.3007,28647.0,28645.0,0.3007]
[1680315869745,0.3267,28647.0,28645.0,0.3017]
[1680315870551,0.43008769,28647.0,28645.0,0.3017]
[1680315870748,0.43008769,28647.0,28645.0,0.001]
[1680315870946,0.43008769,28647.0,28645.0,0.3017]
[1680315872251,0.43008769,28647.0,28645.0,0.001]
[1680315873949,0.12938769,28647.0,28645.0,0.3017]
[1680315874649,0.0873,28646.0,28645.0,0.001]
[1680315874854,0.1873,28646.0,28645.0,0.001]
[1680315875850,0.1,28645.0,28642.0,0.34200264]
[1680315876047,0.1873,28645.0,28642.0,0.34200264]
[1680315876254,0.1,28644.0,28642.0,0.34200264]
[1680315876453,0.0873,28643.0,28642.0,0.34200264]
[1680315877151,0.0873,28643.0,28642.0,0.3017]
[1680315877957,0.0873,28643.0,28642.0,0.34300264]
[1680315878357,0.0873,28643.0,28642.0,0.34200264]
[1680315879359,0.0873,28643.0,28642.0,0.3456282]
[1680315881062,0.0873,28643.0,28642.0,0.30432556]
[1680315881466,0.1,28645.0,28642.0,0.7820282]
[1680315881861,0.187,28646.0,28642.0,0.7820282]
[1680315882866,0.207,28646.0,28642.0,0.3466282]
[1680315883068,0.0873,28644.0,28642.0,0.3466282]
[1680315883264,0.0873,28644.0,28642.0,0.30532556]
[1680315883669,0.0873,28644.0,28642.0,0.3466282]
[1680315884773,0.0883,28644.0,28642.0,0.3526282]
[1680315884973,0.0883,28644.0,28642.0,0.31132556]
[1680315885573,0.0883,28644.0,28642.0,0.3526282]
[1680315887278,0.001,28644.0,28642.0,0.3526282]
[1680315890378,0.001,28644.0,28642.0,0.7017282]
[1680315890874,0.001,28644.0,28643.0,0.04130264]
[1680315891970,0.001,28644.0,28643.0,0.04830264]
[1680315894376,0.0873,28645.0,28643.0,0.04493033]
[1680315894578,0.002,28644.0,28643.0,0.06090706]
[1680315894778,0.002,28644.0,28643.0,0.01962769]
[1680315894972,0.002,28644.0,28643.0,0.06090742]
[1680315895171,0.002,28644.0,28643.0,0.06090688]
[1680315897582,0.39,28644.0,28643.0,0.01962769]
[1680315902989,0.002,28644.0,28643.0,0.01962769]
[1680315903176,0.002,28644.0,28643.0,0.16883972]
[1680315903382,0.30478175,28650.0,28643.0,0.32510525]
[1680315903583,0.30478175,28650.0,28646.0,0.3007]
[1680315904586,0.087,28648.0,28646.0,0.3007]
[1680315904782,0.087,28648.0,28646.0,0.3027]
[1680315905594,0.094,28648.0,28646.0,0.3017]
[1680315906192,0.094,28648.0,28647.0,0.00329443]
[1680315907488,0.094,28648.0,28647.0,0.00429443]
[1680315907686,0.007,28648.0,28647.0,0.00429443]
[1680315910795,0.3007,28644.0,28637.0,0.12363512]
[1680315911091,0.3007,28644.0,28634.0,0.20668205]
[1680315911092,0.6014,28638.0,28634.0,0.06196681]
[1680315911289,0.3007,28638.0,28634.0,0.08264542]
[1680315911492,0.3007,28641.0,28637.0,0.41107499]
[1680315911694,0.05209112,28642.0,28641.0,0.3491]
[1680315911884,0.3077,28648.0,28641.0,0.97254448]
[1680315912090,0.3077,28648.0,28647.0,0.0873]
[1680315913191,0.3077,28648.0,28646.0,0.0873]
[1680315913398,0.3007,28648.0,28646.0,0.0873]
[1680315913999,0.3067,28648.0,28647.0,0.001]
[1680315914392,0.3067,28648.0,28646.0,0.0883]
[1680315914696,0.3007,28648.0,28646.0,0.0873]
[1680315914895,0.3067,28648.0,28647.0,0.001]
[1680315915297,0.3067,28648.0,28646.0,0.0883]
[1680315915594,0.1,28647.0,28646.0,0.001]
[1680315915795,0.4007,28647.0,28646.0,0.001]
[1680315916697,0.4007,28647.0,28643.0,0.41103514]
[1680315917302,0.087,28646.0,28643.0,0.41103514]
[1680315917493,0.1,28645.0,28643.0,0.41103514]
[1680315917698,0.3007,28644.0,28643.0,0.41203514]
[1680315918400,0.3007,28644.0,28643.0,0.4206695]
[1680315919501,0.3027,28644.0,28643.0,0.4236695]
[1680315920397,0.39,28644.0,28643.0,0.01263436]
[1680315920903,0.39,28644.0,28643.0,0.01]
[1680315921603,0.1,28643.0,28639.0,0.01099727]
[1680315921804,0.388,28640.0,28639.0,0.01099727]
[1680315923001,0.391,28640.0,28639.0,0.01099727]
[1680315924204,0.1873,28639.0,28635.0,0.06193514]
[1680315924406,0.388,28636.0,28635.0,0.06193514]
[1680315925495,0.391,28636.0,28634.0,0.06193514]
[1680315925699,0.3007,28635.0,28634.0,0.06193514]
[1680315925900,0.0903,28636.0,28634.0,0.06193514]
[1680315926101,0.391,28636.0,28634.0,0.06193514]
[1680315926406,0.1752668,28635.0,28632.0,0.06193514]
[1680315926602,0.3877,28633.0,28632.0,0.06193514]
[1680315926900,0.3877,28633.0,28630.0,0.31358782]
[1680315926901,0.1,28632.0,28631.0,0.0619365]
[1680315927203,0.488,28632.0,28631.0,0.0619365]
[1680315927402,0.488,28632.0,28630.0,0.0619365]
[1680315927600,0.0873,28631.0,28630.0,0.0619365]
[1680315928102,0.0873,28631.0,28629.0,0.0619365]
[1680315928303,0.4007,28632.0,28629.0,0.0619365]
[1680315928304,0.3874,28630.0,28629.0,0.0619365]
[1680315928697,0.3007,28630.0,28629.0,0.0619365]
[1680315929104,0.3037,28630.0,28629.0,0.0619365]
[1680315929298,0.3037,28630.0,28627.0,0.08258019]
[1680315929299,0.3037,28630.0,28628.0,0.0619365]
[1680315929805,0.003,28630.0,28628.0,0.0619365]
[1680315930210,0.3007,28629.0,28628.0,0.0619365]
[1680315931299,0.3037,28629.0,28628.0,0.0619365]
[1680315931501,0.30530099,28629.0,28628.0,0.0619365]
[1680315931906,0.30530099,28629.0,28627.0,0.0619365]
[1680315932711,0.00460099,28629.0,28627.0,0.0619365]
[1680315933009,0.3007,28628.0,28627.0,0.0619365]
[1680315933203,0.30226195,28628.0,28627.0,0.0619365]
[1680315934103,0.30526195,28628.0,28627.0,0.0619365]
[1680315934901,0.30526195,28628.0,28625.0,0.08258019]
[1680315934902,0.47986195,28628.0,28625.0,0.0619365]
[1680315935099,0.4753,28626.0,28622.0,0.0619365]
[1680315935305,0.388,28623.0,28621.0,0.0619365]
[1680315935510,0.388,28622.0,28620.0,0.0619365]
[1680315935706,0.3007,28624.0,28621.0,0.4364]
[1680315935902,0.3007,28629.0,28621.0,0.4364]
[1680315935903,0.3007,28629.0,28623.0,0.51898019]
[1680315936103,0.3007,28629.0,28626.0,0.4364]
[1680315936301,0.003,28628.0,28626.0,0.4364]
[1680315936506,0.00216388,28627.0,28626.0,0.4364]
[1680315937006,0.3007,28629.0,28626.0,0.73727213]
[1680315937210,0.3007,28629.0,28627.0,0.06175902]
[1680315937511,0.3007,28629.0,28627.0,0.41085902]
[1680315937912,0.3037,28629.0,28627.0,0.3491]
[1680315938704,0.00216205,28628.0,28627.0,0.3491]
[1680315940104,0.00216205,28628.0,28627.0,0.3501]
[1680315940612,0.00516205,28628.0,28627.0,0.3501]
[1680315941618,0.29486051,28629.0,28627.0,0.3501]
[1680315941806,0.00189142,28628.0,28627.0,0.3501]
[1680315942002,0.10189142,28628.0,28627.0,0.3501]
[1680315942512,0.1,28628.0,28627.0,0.3501]
[1680315942712,0.103,28628.0,28627.0,0.3531]
[1680315943411,0.103,28628.0,28627.0,0.004]
[1680315944014,0.1,28628.0,28626.0,0.0873]
[1680315944216,0.103,28628.0,28627.0,0.004]
[1680315945414,0.19,28628.0,28627.0,0.004]
[1680315946207,0.187,28628.0,28624.0,0.41085902]
[1680315946513,0.19,28628.0,28627.0,0.004]
[1680315946709,0.19,28628.0,28625.0,0.21828352]
[1680315946912,0.19,28628.0,28627.0,0.004]
[1680315947312,0.19,28628.0,28624.0,0.41485902]
[1680315947508,0.19,28628.0,28625.0,0.21828337]
[1680315947713,0.09,28628.0,28625.0,0.21828337]
[1680315948511,0.09,28628.0,28627.0,0.004]
[1680315949714,0.3907,28628.0,28627.0,0.004]
[1680315951318,0.3907,28628.0,28625.0,0.06575902]
[1680315951518,0.3907,28628.0,28625.0,0.004]
[1680315951716,0.3907,28628.0,28626.0,0.21828421]
[1680315952717,0.3907,28628.0,28627.0,0.004]
[1680315952918,0.3907,28628.0,28627.0,0.22228421]
[1680315953214,0.3907,28628.0,28627.0,0.21828421]
[1680315953614,0.3907,28628.0,28627.0,0.22228421]
[1680315957315,0.3037,28628.0,28627.0,0.22228421]
[1680315958015,0.391,28628.0,28627.0,0.22228421]
[1680315959020,0.15,28627.0,28625.0,0.06175902]
[1680315959318,0.1738,28626.0,28621.0,0.06175902]
[1680315959517,0.087,28622.0,28621.0,0.06175902]
[1680315959724,0.0872,28624.0,28621.0,0.21830845]
[1680315959920,0.0872,28624.0,28622.0,0.16181254]
[1680315960127,0.00259422,28626.0,28623.0,1.2690213]
[1680315960326,0.003,28626.0,28625.0,0.5234]
[1680315960528,0.003,28626.0,28625.0,1.05531041]
[1680315961231,0.003,28626.0,28625.0,0.96801041]
[1680315961427,0.0873,28631.0,28627.0,0.3491]
[1680315961630,0.0873,28631.0,28628.0,0.28012474]
[1680315961819,0.0873,28631.0,28629.0,0.1]
[1680315962022,0.0873,28631.0,28629.0,0.21830845]
[1680315962428,0.0903,28631.0,28629.0,0.21830845]
[1680315963328,0.0903,28631.0,28629.0,0.28012474]
[1680315963731,0.0903,28631.0,28627.0,0.73222171]
[1680315963732,0.0903,28631.0,28630.0,0.21830845]
[1680315964131,0.0903,28631.0,28629.0,0.21830845]
[1680315964834,0.1739,28630.0,28629.0,0.21830845]
[1680315965026,0.1,28629.0,28625.0,0.06181629]
[1680315965226,0.3874,28626.0,28625.0,0.06181629]
[1680315965427,0.3874,28626.0,28624.0,0.08242171]
[1680315965627,0.3874,28626.0,28625.0,0.28023769]
[1680315965837,0.3874,28626.0,28625.0,0.21829992]
[1680315966134,0.3874,28626.0,28625.0,0.28023638]
[1680315967030,0.4745,28626.0,28623.0,0.08242171]
[1680315967229,0.4745,28626.0,28623.0,0.0619413]
[1680315967230,0.087,28624.0,28623.0,0.0619413]
[1680315967533,0.087,28624.0,28623.0,0.06199469]
[1680315967728,0.087,28624.0,28622.0,0.06199469]
[1680315967929,0.388,28623.0,28622.0,0.06199469]
[1680315968528,0.1,28622.0,28621.0,0.06199469]
[1680315968728,0.18963555,28622.0,28621.0,0.06199469]
[1680315969433,0.18963555,28622.0,28620.0,0.08242171]
[1680315969634,0.0873,28621.0,28620.0,0.08242171]
[1680315969833,0.0873,28621.0,28620.0,0.31350185]
[1680315970032,0.0873,28621.0,28620.0,0.53183183]
[1680315970228,0.0873,28621.0,28620.0,0.21832998]
[1680315970527,0.0873,28621.0,28619.0,0.31348912]
[1680315970733,0.3007,28620.0,28619.0,0.31348912]
[1680315971134,0.3007,28620.0,28619.0,0.76291628]
[1680315971536,0.28969576,28620.0,28619.0,0.76291628]
[1680315971741,0.29269576,28620.0,28619.0,0.76291628]
[1680315972237,0.003,28620.0,28619.0,1.11669457]
[1680315972433,0.1873,28629.0,28620.0,0.4491]
[1680315972633,0.1873,28629.0,28624.0,0.14925747]
[1680315973035,0.1873,28629.0,28625.0,0.06195747]
[1680315973742,0.1883,28629.0,28625.0,0.06195747]
[1680315976236,0.3007,28628.0,28625.0,0.06195747]
[1680315976542,0.1,28627.0,28625.0,0.06495747]
[1680315977935,0.103,28627.0,28625.0,0.06495747]
[1680315979944,0.103,28627.0,28626.0,0.06195747]
[1680315980845,0.103,28627.0,28625.0,0.06495747]
[1680315981544,0.106,28627.0,28626.0,0.003]
[1680315981945,0.1933,28627.0,28626.0,0.003]
[1680315982647,0.1903,28627.0,28625.0,0.06495747]
[1680315983043,0.1903,28627.0,28626.0,0.003]
[1680315983442,0.1903,28627.0,28626.0,0.06495747]
[1680315983643,0.1903,28627.0,28626.0,0.06195747]
[1680315983950,0.1873,28627.0,28626.0,0.06195747]
[1680315984139,0.1903,28627.0,28626.0,0.06495747]
[1680315985750,0.1903,28627.0,28626.0,0.003]
[1680315986454,0.1873,28627.0,28625.0,0.06195747]
[1680315986653,0.1903,28627.0,28626.0,0.003]
[1680315988147,0.1873,28627.0,28625.0,0.06195747]
[1680315988456,0.388,28626.0,28625.0,0.06195747]
[1680315989253,0.388,28626.0,28625.0,0.06495747]
[1680315989552,0.388,28626.0,28625.0,0.06195747]
[1680315989755,0.391,28626.0,28625.0,0.003]
[1680315989951,0.4783,28626.0,28625.0,0.003]
[1680315990148,0.4783,28626.0,28625.0,0.06499674]
[1680315991348,0.4783,28626.0,28624.0,0.06199674]
[1680315991349,0.4753,28626.0,28624.0,0.06199674]
[1680315991547,0.391,28626.0,28625.0,0.003]
[1680315991749,0.4783,28626.0,28625.0,0.06499674]
[1680315993058,0.4783,28626.0,28625.0,0.003]
[1680315993251,0.4783,28626.0,28625.0,0.06499674]
[1680315994058,0.4783,28626.0,28625.0,0.02824882]
[1680315994451,0.4783,28626.0,28623.0,0.08260996]
[1680315994655,0.0872,28624.0,28622.0,0.08260996]
[1680315994855,0.1,28623.0,28621.0,0.08260996]
[1680315995054,0.3007,28622.0,28621.0,0.08260996]
[1680315995357,0.3007,28622.0,28621.0,0.21833305]
[1680315995552,0.3007,28622.0,28621.0,0.30094301]
[1680315995753,0.3007,28622.0,28621.0,0.21833305]
[1680315995953,0.3877,28622.0,28621.0,0.21833305]
[1680315997256,0.475,28622.0,28621.0,0.21833305]
[1680315997458,0.478,28622.0,28621.0,0.21833305]
[1680315998051,0.478,28622.0,28620.0,0.08260996]
[1680315998358,0.488,28621.0,28620.0,0.08260996]
[1680315998552,0.49001587,28621.0,28620.0,0.08260996]
[1680315998755,0.49001587,28621.0,28620.0,0.53205208]
[1680315999858,0.49001587,28621.0,28620.0,0.21834538]
[1680316000258,0.1,28620.0,28619.0,0.23106741]